bitfinex-derivatives/quotes_ETHF0:USTF0_20250528
["timestamp","ask_amount","ask_price","bid_price","bid_amount"]
[1748397974774,0.76085,2627.3,2627.2,1.2559]
[1748397974975,0.76085,2627.3,2627.2,4.344]
[1748397975876,0.76091,2627.1,2627.0,1.3307]
[1748397976079,3.96871,2627.1,2627.0,5.6747]
[1748397976771,3.2078,2627.1,2627.0,7.75424]
[1748397977180,3.2078,2627.1,2627.0,3.41024]
[1748397977473,3.2078,2627.1,2627.0,7.75424]
[1748397978077,3.21350147,2627.5,2627.4,0.76082]
[1748397980279,3.21350147,2627.5,2627.4,5.76082]
[1748397982081,0.00570147,2627.5,2627.4,5.76082]
[1748397982279,1.90127,2628.5,2627.4,5.76082]
[1748397982280,3.2078,2628.2,2627.6,1.90189]
[1748397982485,3.2078,2628.2,2628.1,0.76062]
[1748397983180,3.2078,2628.5,2628.3,0.76054]
[1748397983381,0.00570147,2628.4,2628.3,5.10454]
[1748397983577,0.00570147,2628.4,2628.0,1.9413]
[1748397983578,0.76625147,2628.4,2628.0,1.9413]
[1748397983775,0.76625147,2628.4,2628.3,0.76056]
[1748397983776,0.00570147,2628.4,2628.3,0.76056]
[1748397985182,0.00570147,2628.4,2628.3,1.38376]
[1748397986476,0.00570147,2628.4,2628.3,0.6232]
[1748397986781,0.00570147,2628.4,2628.3,4.9672]
[1748397987175,0.00570147,2628.4,2628.1,0.7606]
[1748397987381,0.76068,2627.9,2627.8,0.00570147]
[1748397987584,3.96848,2627.9,2627.8,0.00570147]
[1748397987780,8.2078,2627.9,2627.8,0.00570147]
[1748397987981,3.2078,2627.9,2627.8,0.00570147]
[1748397988674,3.2078,2627.9,2627.8,0.76641147]
[1748397989285,4.497,2628.2,2627.8,0.00570147]
[1748397989481,4.497,2628.2,2628.1,0.76062]
[1748397989686,4.497,2628.2,2628.1,5.02762]
[1748397990187,3.2078,2628.2,2628.1,5.02762]
[1748397990784,3.2078,2628.2,2628.1,4.267]
[1748397990980,3.2078,2628.2,2628.1,5.02762]
[1748397991583,3.2078,2628.2,2628.0,4.267]
[1748397991788,1.3014,2628.1,2628.0,5.02765]
[1748397992184,1.3014,2628.1,2628.0,4.267]
[1748397992391,1.3014,2628.1,2628.0,5.02765]
[1748397995188,3.2078,2628.2,2628.1,0.76062]
[1748397995389,3.2078,2628.2,2628.1,2.09822]
[1748397995585,0.00570147,2628.4,2628.3,0.76056]
[1748397998300,0.00570147,2628.4,2628.1,2.0982]
[1748397998485,0.00570147,2628.4,2627.9,2.10796]
[1748397998486,0.76065,2628.0,2627.9,2.10796]
[1748397998683,0.76065,2628.0,2627.9,4.267]
[1748397998888,0.76064,2628.1,2627.9,5.02766]
[1748397999490,0.76064,2628.1,2628.0,0.76065]
[1748398000097,3.2078,2628.2,2627.9,4.267]
[1748398000292,0.76064,2628.1,2628.0,0.76065]
[1748398000891,0.76064,2628.1,2627.9,4.267]
[1748398001094,3.96841,2628.2,2628.1,0.76062]
[1748398001387,3.2078,2628.2,2628.1,0.76062]
[1748398003199,3.2078,2628.2,2628.0,0.76063]
[1748398003398,0.76064,2628.1,2628.0,0.76063]
[1748398003594,3.2078,2628.2,2627.9,4.267]
[1748398003798,0.76068,2627.9,2627.8,4.27270147]
[1748398003994,3.2078,2627.9,2627.8,5.03341147]
[1748398004494,0.76076,2627.7,2627.5,0.76078]
[1748398004699,3.96858,2627.6,2627.4,0.76081]
[1748398004893,3.2078,2627.6,2627.5,0.7608]
[1748398005198,3.96858,2627.6,2627.4,0.76081]
[1748398005804,3.2078,2627.6,2627.5,0.7608]
[1748398006302,3.96858,2627.6,2627.2,2.621]
[1748398006495,3.2078,2627.6,2627.3,0.76084]
[1748398006695,3.2078,2627.4,2627.3,0.76086]
[1748398007195,0.76087,2627.3,2627.1,4.267]
[1748398007396,0.6465,2627.2,2627.1,5.02791]
[1748398008496,3.2078,2627.4,2627.3,0.76086]
[1748398009298,4.4942,2627.4,2627.3,0.76086]
[1748398009602,5.25503,2627.4,2627.2,1.924]
[1748398009800,3.2078,2627.4,2627.3,0.76086]
[1748398010101,3.2078,2627.4,2627.3,2.09946]
[1748398010297,1.3607,2627.7,2627.6,0.76077]
[1748398010504,3.2078,2627.9,2627.8,0.76071]
[1748398011000,1.3607,2628.2,2627.8,0.76071]
[1748398011198,1.3607,2628.2,2628.1,0.76063]
[1748398012002,2.1213,2628.2,2628.1,0.76063]
[1748398012300,3.2078,2628.3,2628.2,0.7606]
[1748398013706,0.00570147,2628.4,2628.3,0.76057]
[1748398016909,1.28800147,2628.4,2628.3,0.76057]
[1748398017606,0.00570147,2628.4,2628.3,0.76057]
[1748398021301,0.00570147,2628.4,2627.7,3.2078]
[1748398021302,8.19308147,2628.4,2627.6,4.173]
[1748398021510,3.96854,2627.7,2627.6,4.173]
[1748398021705,3.2078,2627.7,2627.6,4.93377]
[1748398024108,1.90194,2627.6,2626.9,1.90242]
[1748398024305,0.76082,2627.5,2627.4,0.76082]
[1748398024511,4.4539,2627.5,2627.4,0.76082]
[1748398025011,3.2078,2627.5,2627.4,2.09662]
[1748398025306,4.529,2627.9,2627.8,0.76072]
[1748398025510,3.2078,2628.2,2628.1,0.76063]
[1748398025709,4.529,2628.2,2628.1,0.76063]
[1748398028315,3.2078,2628.2,2628.1,0.76063]
[1748398028612,3.9684,2628.2,2628.1,0.76063]
[1748398028811,3.9684,2628.2,2628.1,4.93363]
[1748398029107,3.2078,2628.2,2627.8,4.173]
[1748398029305,3.2078,2627.9,2627.8,4.9337]
[1748398029511,3.96849,2627.9,2627.7,1.39994]
[1748398029711,1.3572,2627.8,2627.7,1.39994]
[1748398029913,1.3572,2627.8,2627.7,5.57294]
[1748398030214,3.2078,2627.9,2627.8,0.76072]
[1748398031715,4.5291,2627.9,2627.8,0.76072]
[1748398034515,4.5291,2627.9,2627.7,5.57293]
[1748398034716,0.76081,2627.6,2627.5,0.76081]
[1748398035015,3.2078,2627.6,2627.5,4.93381]
[1748398035211,3.2078,2627.6,2627.0,4.173]
[1748398035517,2.581,2627.5,2627.3,0.76084]
[1748398035712,3.2078,2627.4,2627.3,0.76084]
[1748398035911,4.5322,2627.4,2627.3,0.76084]
[1748398038119,5.29304,2627.4,2627.3,0.76087]
[1748398038621,4.5322,2627.4,2627.0,4.173]
[1748398038917,3.2078,2627.1,2626.6,38.349]
[1748398039112,1.9209,2627.0,2626.9,0.76098]
[1748398040718,1.2804,2627.0,2626.9,0.76098]
[1748398041020,3.2078,2627.1,2627.0,0.76095]
[1748398042513,3.2078,2627.1,2627.0,2.64415]
[1748398043318,3.96872,2627.1,2627.0,1.40025]
[1748398043519,3.2078,2627.1,2627.0,4.174]
[1748398043714,3.96874,2627.1,2627.0,4.93495]
[1748398044119,3.2078,2627.1,2627.0,4.93495]
[1748398044318,3.2078,2627.1,2627.0,0.76095]
[1748398044514,5.21812,2627.1,2627.0,0.76095]
[1748398045016,5.21812,2627.1,2626.7,0.6567]
[1748398045017,4.4572,2627.1,2626.7,0.6567]
[1748398045326,0.76097,2627.0,2626.9,4.93496]
[1748398045523,1.2494,2627.0,2626.9,4.93496]
[1748398046223,2.01035,2627.0,2626.9,4.93496]
[1748398046421,1.2494,2627.0,2626.9,4.93496]
[1748398047315,3.2078,2627.1,2627.0,0.76095]
[1748398047523,1.3623,2627.3,2627.2,0.76089]
[1748398047722,0.6345,2627.8,2627.7,0.76075]
[1748398048023,1.3623,2627.8,2627.7,4.93475]
[1748398050118,0.661,2628.2,2628.1,0.76063]
[1748398050320,3.21350147,2628.4,2628.3,0.76058]
[1748398051022,3.21350147,2628.4,2627.7,1.90185]
[1748398051223,3.21350147,2628.4,2628.3,0.76058]
[1748398051623,0.00570147,2628.4,2628.3,0.76058]
[1748398052920,1.47e-06,2628.4,2628.3,3.96838]
[1748398053124,1.47e-06,2628.4,2628.3,10.26488]
[1748398064027,1.2763,2629.2,2629.1,0.76035]
[1748398064332,1.2763,2629.2,2629.1,22.88735]
[1748398064833,3.8837,2629.8,2629.7,0.76017]
[1748398065023,4.64384,2629.8,2629.7,0.76017]
[1748398065224,8.8837,2629.8,2629.7,0.76017]
[1748398065926,3.8837,2629.8,2629.7,0.76017]
[1748398067127,5.2269,2629.8,2629.7,0.76017]
[1748398067633,0.7602,2629.6,2629.5,0.00570147]
[1748398067834,0.7602,2629.6,2629.5,4.11570147]
[1748398068835,0.7602,2629.6,2629.5,4.87593147]
[1748398069339,5.98706,2629.8,2629.7,0.76017]
[1748398069835,10.98706,2629.8,2629.7,0.76017]
[1748398070634,5.2269,2629.8,2629.7,0.76017]
[1748398071532,2.0191,2629.8,2629.7,0.76017]
[1748398075842,2.0191,2629.8,2629.5,10.58108147]
[1748398075843,0.7602,2629.6,2629.5,0.00570147]
[1748398076039,3.968,2629.6,2629.5,0.00570147]
[1748398076439,3.2078,2629.6,2629.5,0.76593147]
[1748398077245,4.5766,2629.6,2629.5,0.76593147]
[1748398078247,1.3688,2629.6,2629.5,0.76593147]
[1748398078643,4.5766,2629.6,2629.5,0.76593147]
[1748398080748,4.5766,2629.6,2629.5,18.69093147]
[1748398081142,0.7602,2629.6,2629.5,0.76593147]
[1748398081351,2.99782568,2632.0,2629.5,40.25703224]
[1748398081649,3.2078,2633.0,2631.9,1.89883]
[1748398081846,42.79276215,2632.9,2632.2,3.2078]
[1748398082045,42.24116,2632.9,2632.4,0.75938]
[1748398082246,41.48760147,2632.9,2632.4,0.00570147]
[1748398082445,0.68760147,2632.9,2632.4,0.00570147]
[1748398082644,0.68760147,2632.9,2632.6,0.75933]
[1748398082846,0.68760147,2632.9,2632.4,0.00570147]
[1748398083043,1.44686147,2632.9,2632.4,0.76508147]
[1748398083242,0.68760147,2632.9,2632.5,0.75934]
[1748398083441,0.68760147,2632.9,2632.6,0.75931]
[1748398083648,0.68760147,2632.9,2632.7,0.75931]
[1748398083853,0.68760147,2632.9,2632.7,0.7593]
[1748398084154,5.68760147,2632.9,2632.7,0.7593]
[1748398084349,5.68760147,2632.9,2632.4,0.00570147]
[1748398084548,0.68760147,2632.9,2632.7,0.75929]
[1748398084852,0.68760147,2632.9,2632.8,0.75928]
[1748398085047,0.68760147,2632.9,2632.7,0.75929]
[1748398085243,0.68760147,2632.9,2632.8,0.75928]
[1748398085444,0.7609957,2632.9,2632.8,0.75928]
[1748398085648,5.7609957,2632.9,2632.8,0.75928]
[1748398085844,0.7609957,2632.9,2632.8,0.75928]
[1748398086052,0.7609957,2632.9,2632.8,3.96708]
[1748398086442,0.68760147,2632.9,2632.8,3.96708]
[1748398087044,5.68760147,2632.9,2632.8,3.2078]
[1748398087249,5.68760147,2632.9,2632.8,0.75928]
[1748398087453,0.7609957,2632.9,2632.8,0.75928]
[1748398089356,0.68760147,2632.9,2632.8,0.75928]
[1748398090646,0.68760147,2632.9,2632.7,0.75928]
[1748398090855,1.2808,2632.8,2632.6,4.529]
[1748398091152,2.0401,2632.8,2632.6,5.28831]
[1748398091455,1.2808,2632.8,2632.7,0.75931]
[1748398094054,0.00570147,2632.9,2632.8,0.75928]
[1748398096854,1.33390147,2632.9,2632.8,0.75928]
[1748398097561,1.33390147,2632.9,2632.8,2.05578]
[1748398098358,1.33390147,2632.9,2632.8,0.75928]
[1748398099060,0.00570147,2632.9,2632.8,2.08308]
[1748398100374,0.75903,2633.7,2632.8,5.12015]
[1748398100667,3.2078,2634.2,2633.6,3.2078]
[1748398100855,1.2848,2634.1,2634.0,0.7589]
[1748398101457,0.00570147,2634.3,2634.2,0.75887]
[1748398101656,1.28850147,2634.3,2634.2,0.75887]
[1748398102364,0.00570147,2634.3,2634.2,0.75887]
[1748398102567,0.00570147,2634.3,2634.2,8.49367]
[1748398102963,0.00570147,2634.3,2634.2,9.74277]
[1748398103270,3.21350147,2634.3,2634.0,4.527]
[1748398103464,1.2828,2634.2,2634.1,0.7589]
[1748398103665,0.00570147,2634.3,2634.2,0.75887]
[1748398107768,0.00570147,2634.3,2634.2,3.96667]
[1748398108866,0.00570147,2634.3,2634.2,8.49267]
[1748398109069,1.32360147,2634.3,2634.2,8.49267]
[1748398109268,1.32360147,2634.3,2633.9,3.2078]
[1748398109468,0.75893,2634.0,2633.9,4.526]
[1748398109670,0.75893,2634.0,2633.9,5.28496]
[1748398109870,0.75893,2634.0,2633.9,4.526]
[1748398110073,0.75892,2634.1,2633.9,5.28494]
[1748398110273,1.2553,2634.0,2633.9,5.28494]
[1748398110474,0.75896,2633.9,2633.8,0.00570147]
[1748398111271,1.2553,2634.0,2633.8,0.00570147]
[1748398111472,1.2553,2634.0,2633.9,0.75896]
[1748398111867,0.75896,2633.9,2633.8,0.00570147]
[1748398112379,2.01426,2633.9,2633.8,0.00570147]
[1748398112577,1.2553,2633.9,2633.8,0.76469147]
[1748398113276,1.2553,2633.9,2633.8,0.00570147]
[1748398113477,2.01426,2633.9,2633.8,0.00570147]
[1748398113673,8.10211194,2633.9,2633.8,0.00570147]
[1748398113865,3.10211194,2633.9,2633.8,0.00570147]
[1748398114671,3.17550617,2633.9,2633.8,0.00570147]
[1748398115082,0.07339423,2633.9,2633.8,8.36649147]
[1748398115981,0.07339423,2633.9,2633.8,3.97249147]
[1748398116683,1.35579423,2633.9,2633.8,3.97249147]
[1748398118983,2.11475423,2633.9,2633.8,3.97249147]
[1748398120484,1.35579423,2633.9,2633.8,0.76469147]
[1748398121176,2.11475423,2633.9,2633.8,0.76469147]
[1748398121380,1.35579423,2633.9,2633.8,0.76469147]
[1748398122382,2.11475423,2633.9,2633.8,0.76469147]
[1748398122785,2.12419276,2633.9,2633.8,0.76469147]
[1748398123990,1.36523276,2633.9,2633.8,0.76469147]
[1748398125591,2.12419276,2633.9,2633.8,0.76469147]
[1748398127185,0.08283276,2633.9,2633.8,0.76469147]
[1748398127385,0.08283276,2633.9,2633.8,2.09179147]
[1748398127781,0.08283276,2633.9,2633.8,0.76469147]
[1748398128095,0.84179276,2633.9,2633.8,0.76469147]
[1748398130791,0.08283276,2633.9,2633.8,0.76469147]
[1748398130986,0.84179276,2633.9,2633.8,0.76469147]
[1748398133390,0.75861,2635.2,2633.9,1.89741]
[1748398133692,1.09141173,2635.1,2635.0,0.75864]
[1748398134289,3.97206147,2635.3,2635.2,0.75859]
[1748398134589,2.02603003,2635.3,2634.8,2.53776]
[1748398134794,1.3135,2635.2,2635.1,0.75861]
[1748398136089,1.3135,2635.2,2634.9,1.2843]
[1748398136291,1.3135,2635.2,2635.1,0.75861]
[1748398136794,2.0721,2635.2,2635.1,0.75861]
[1748398137189,0.76428147,2635.3,2635.2,0.75859]
[1748398137693,0.7586,2635.2,2634.9,1.2843]
[1748398137897,2.0778,2635.2,2635.1,0.75859]
[1748398139685,0.00570147,2635.3,2635.2,0.75859]
[1748398140096,3.2078,2635.7,2635.5,0.75848]
[1748398140292,0.75852,2635.5,2635.4,0.7585]
[1748398140485,0.75853,2635.4,2635.3,1.44264]
[1748398140685,2.12113,2635.4,2635.3,0.75854]
[1748398140886,1.3626,2635.4,2635.3,0.75854]
[1748398141998,2.12113,2635.4,2635.3,0.75854]
[1748398142394,0.75859,2635.2,2635.1,0.76427147]
[1748398143001,0.75858,2635.3,2635.2,0.75856]
[1748398144401,2.12115,2635.4,2635.3,0.75856]
[1748398145102,0.75859,2635.3,2635.2,0.75857]
[1748398145301,0.75859,2635.2,2635.1,0.76429147]
[1748398146195,1.89669,2634.9,2634.4,3.2078]
[1748398146396,0.75875,2634.7,2634.6,0.75872]
[1748398146597,2.10052,2634.8,2634.7,0.75873]
[1748398146792,1.3418,2634.8,2634.7,0.75873]
[1748398147402,3.2078,2635.2,2635.1,0.75861]
[1748398147609,0.75856,2635.3,2634.5,1.25580147]
[1748398147610,1.3418,2635.3,2634.8,4.4818]
[1748398147801,0.75867,2635.0,2634.9,0.75867]
[1748398148001,0.75867,2634.9,2634.8,3.2078]
[1748398148200,2.10047,2634.9,2634.8,3.2078]
[1748398148400,0.7587,2634.8,2634.7,1.274]
[1748398148603,2.1005,2634.8,2634.7,1.274]
[1748398149004,0.75873,2634.7,2634.6,0.6316]
[1748398149205,2.10053,2634.7,2634.6,1.39036]
[1748398149507,0.75876,2634.6,2634.5,0.00570147]
[1748398149806,2.13486,2634.6,2634.5,0.00570147]
[1748398150398,2.13486,2634.6,2634.5,0.76449147]
[1748398152204,1.3761,2634.6,2634.5,0.76449147]
[1748398152508,0.75875,2634.7,2634.6,0.75876]
[1748398152704,0.75875,2634.7,2634.6,2.05246]
[1748398153610,0.75875,2634.7,2634.6,1.2937]
[1748398154510,0.75875,2634.7,2634.6,2.05246]
[1748398156406,0.75875,2634.7,2634.6,1.2937]
[1748398156610,0.75876,2634.6,2634.5,0.00570147]
[1748398156814,2.00536,2634.6,2634.5,0.00570147]
[1748398157113,0.75874,2634.7,2634.6,0.75876]
[1748398157313,0.75874,2634.7,2634.6,2.05406]
[1748398157514,2.00532,2634.8,2634.7,0.75873]
[1748398158810,1.89683,2634.7,2634.1,0.6414]
[1748398159008,0.75887,2634.2,2634.1,0.6414]
[1748398159405,0.75887,2634.2,2633.5,3.2078]
[1748398159406,3.79453,2634.1,2633.5,3.2078]
[1748398159605,0.75898,2633.9,2633.7,1.3029]
[1748398159809,1.95340147,2634.1,2633.7,1.9752]
[1748398160015,0.75895,2634.0,2633.9,0.75894]
[1748398160216,0.75896,2633.9,2633.8,2.06187]
[1748398160517,1.2736,2633.9,2633.8,2.06187]
[1748398161014,2.03256,2633.9,2633.8,2.06187]
[1748398161409,0.67980147,2634.1,2633.8,1.3029]
[1748398161617,0.76463147,2634.1,2634.0,0.75893]
[1748398161819,0.75896,2634.0,2633.9,0.75894]
[1748398162412,0.76461147,2634.1,2634.0,0.75893]
[1748398162606,0.75896,2634.0,2633.9,0.75895]
[1748398162812,0.75896,2633.9,2633.8,2.06188]
[1748398163719,0.75896,2633.9,2633.8,2.06189]
[1748398165821,1.2751,2634.0,2633.9,0.75896]
[1748398166122,0.75893,2634.0,2633.9,2.12364]
[1748398166326,0.75893,2634.0,2633.9,1.3647]
[1748398166524,0.75893,2634.0,2633.9,2.12366]
[1748398166814,0.75893,2634.0,2633.9,1.3647]
[1748398167022,0.75893,2634.0,2633.9,2.12366]
[1748398168229,0.75893,2634.0,2633.9,1.3647]
[1748398168426,0.75899,2633.8,2633.7,0.6723]
[1748398168726,0.75899,2633.8,2633.7,2.0159]
[1748398169024,0.75899,2633.8,2633.7,2.77492]
[1748398170520,0.75899,2633.8,2633.7,0.6723]
[1748398171027,0.75899,2633.8,2633.7,1.43132]
[1748398171723,0.75899,2633.8,2633.7,2.74912]
[1748398171928,0.75899,2633.8,2633.7,1.9901]
[1748398172826,0.75899,2633.8,2633.7,2.74912]
[1748398175429,0.75899,2633.8,2633.7,1.9901]
[1748398175628,0.83238423,2633.8,2633.7,1.9901]
[1748398176023,2.10018423,2633.8,2633.7,2.74912]
[1748398176223,2.10018423,2633.8,2633.7,1.9901]
[1748398176624,2.10018423,2633.8,2633.7,2.74912]
[1748398177022,2.10018423,2633.8,2633.7,1.9901]
[1748398178035,0.75905,2633.6,2633.5,0.00570147]
[1748398178632,3.96685,2633.6,2633.5,0.00570147]
[1748398178828,8.26585,2633.6,2633.5,0.00570147]
[1748398179029,9.73361207,2633.6,2633.5,0.00570147]
[1748398179230,9.73361242,2633.6,2633.5,0.00570147]
[1748398180235,9.7335878,2633.6,2633.5,0.00570147]
[1748398180434,9.56065,2633.6,2633.5,0.00570147]
[1748398181134,2.05385,2633.6,2633.5,0.00570147]
[1748398181537,2.05385,2633.6,2633.5,1.26460147]
[1748398184337,2.05385,2633.6,2633.5,0.00570147]
[1748398185135,2.22676602,2633.6,2633.5,0.00570147]
[1748398185335,0.75898,2633.9,2633.5,30.75950147]
[1748398185637,0.75889,2634.2,2634.0,0.75893]
[1748398185838,0.76462147,2634.1,2633.9,2.6348]
[1748398186038,0.76462147,2634.1,2634.0,0.75893]
[1748398186234,0.76462147,2634.1,2634.0,2.12813]
[1748398186740,0.00570147,2634.1,2634.0,2.12813]
[1748398187641,0.76460147,2634.1,2634.0,2.12813]
[1748398188435,0.76460147,2634.1,2634.0,1.3692]
[1748398188642,0.75893,2634.0,2633.9,0.6541]
[1748398188841,2.04463,2634.0,2633.9,1.41306]
[1748398189851,0.75899,2633.8,2633.7,1.3692]
[1748398190154,0.75902,2633.7,2633.6,0.75904]
[1748398190441,2.12412,2633.7,2633.6,0.75904]
[1748398191244,2.12412,2633.7,2633.5,3.42686147]
[1748398191245,0.75905,2633.6,2633.5,3.42686147]
[1748398191447,2.12413,2633.7,2633.6,0.75905]
[1748398191843,0.75905,2633.6,2633.5,0.00570147]
[1748398192042,2.12415,2633.6,2633.5,0.00570147]
[1748398192244,2.76235,2633.6,2633.5,0.00570147]
[1748398194050,3.85051127,2633.6,2633.5,0.00570147]
[1748398194247,3.85051127,2633.6,2633.5,1.47e-06]
[1748398196552,8.85051127,2633.6,2633.5,1.47e-06]
[1748398196752,3.85051127,2633.6,2633.5,1.47e-06]
[1748398197447,3.84981044,2633.6,2633.5,1.47e-06]
[1748398197644,8.14981044,2633.6,2633.5,1.47e-06]
[1748398198548,2.76235,2633.6,2633.5,1.47e-06]
[1748398199054,2.76235,2633.6,2633.5,1.28830147]
[1748398199055,2.12415,2633.6,2633.5,1.28830147]
[1748398199358,2.12415,2633.6,2633.5,2.04738147]
[1748398199550,0.75905,2633.6,2633.5,2.04738147]
[1748398199747,0.75905,2633.6,2633.5,0.75908147]
[1748398200448,0.75903,2633.8,2633.7,0.75899]
[1748398201050,0.75898,2633.9,2633.8,0.75896]
[1748398202555,0.75899,2633.8,2633.7,2.04729]
[1748398203955,0.75899,2633.8,2633.7,1.2883]
[1748398205255,0.75905,2633.6,2633.5,1.47e-06]
[1748398205452,3.96685,2633.6,2633.5,1.47e-06]
[1748398205855,2.07425,2633.6,2633.5,1.47e-06]
[1748398210653,5.28205,2633.6,2633.5,1.47e-06]
[1748398212764,6.39367665,2633.6,2633.5,1.47e-06]
[1748398213755,3.18587665,2633.6,2633.5,1.47e-06]
[1748398214157,3.18567754,2633.6,2633.5,1.47e-06]
[1748398215061,2.07425,2633.6,2633.5,1.47e-06]
[1748398215460,5.28205,2633.6,2633.5,1.47e-06]
[1748398216365,6.39357193,2633.6,2633.5,1.47e-06]
[1748398216561,47.19357193,2633.6,2633.5,1.47e-06]
[1748398217760,3.18577193,2633.6,2633.5,1.47e-06]
[1748398217968,2.07425,2633.6,2633.5,1.47e-06]
[1748398218168,43.98673308,2633.6,2633.5,1.93920147]
[1748398218356,0.75905,2633.6,2633.5,2.69827147]
[1748398218963,0.75902,2633.8,2633.7,0.75899]
[1748398220970,0.75905,2633.7,2633.6,0.75903]
[1748398222772,0.75905,2633.6,2633.5,5.14700147]
[1748398223163,0.83244423,2633.6,2633.5,5.14700147]
[1748398223660,0.83244423,2633.6,2633.5,1.93920147]
[1748398224375,0.83244423,2633.6,2633.5,0.68570147]
[1748398225466,0.83244423,2633.6,2633.5,1.47e-06]
[1748398232375,5.15362884,2633.6,2633.5,1.47e-06]
[1748398232578,4.04024423,2633.6,2633.5,1.47e-06]
[1748398234465,44.84024423,2633.6,2633.5,1.47e-06]
[1748398236778,4.04024423,2633.6,2633.5,0.75907147]
[1748398236978,0.07339423,2633.6,2633.5,0.75907147]
[1748398237874,0.07339423,2633.6,2633.5,5.75907147]
[1748398238071,0.75894,2634.0,2633.9,0.75896]
[1748398241484,0.75894,2634.0,2633.9,1.42126]
[1748398241984,0.00570147,2634.1,2634.0,0.75893]
[1748398242180,0.00570147,2634.1,2634.0,2.09703]
[1748398242883,0.00570147,2634.1,2634.0,11.15903]
[1748398244882,0.76460147,2634.1,2634.0,11.15903]
[1748398245082,0.76460147,2634.1,2634.0,10.4001]
[1748398245390,1.89744,2633.9,2633.5,1.47e-06]
[1748398245680,0.83244423,2633.6,2633.5,1.47e-06]
[1748398246088,41.63244423,2633.6,2633.5,1.47e-06]
[1748398246285,47.74399526,2633.6,2633.5,1.47e-06]
[1748398246590,42.74399526,2633.6,2633.5,1.47e-06]
[1748398246783,44.62479526,2633.6,2633.5,1.47e-06]
[1748398247992,48.68679526,2633.6,2633.5,1.47e-06]
[1748398248186,48.68670187,2633.6,2633.5,1.47e-06]
[1748398249179,46.94494423,2633.6,2633.5,1.47e-06]
[1748398249691,42.88294423,2633.6,2633.5,1.47e-06]
[1748398249893,2.08294423,2633.6,2633.5,1.47e-06]
[1748398254088,2.08294423,2633.6,2633.5,1.27030147]
[1748398254395,0.83244423,2633.6,2633.5,1.27030147]
[1748398256494,0.83244423,2633.6,2633.5,1.47e-06]
[1748398256994,1.50484423,2633.6,2633.5,1.47e-06]
[1748398257193,0.83244423,2633.6,2633.5,1.47e-06]
[1748398263495,9.89544423,2633.6,2633.5,1.47e-06]
[1748398263700,11.00676387,2633.6,2633.5,1.47e-06]
[1748398264088,1.94376387,2633.6,2633.5,1.47e-06]
[1748398264292,6.00676387,2633.6,2633.5,1.47e-06]
[1748398264601,0.83244423,2633.6,2633.5,1.47e-06]
[1748398265097,0.83244423,2633.6,2633.5,1.37520147]
[1748398269893,0.83244423,2633.6,2633.5,1.47e-06]
[1748398271697,0.75928,2632.8,2632.7,3.2078]
[1748398271897,0.75924,2633.1,2632.7,3.96711]
[1748398272097,1.3594,2633.5,2632.7,3.96711]
[1748398272098,0.75918,2633.3,2633.2,0.75913]
[1748398272403,0.75919,2633.2,2633.1,0.75917]
[1748398272604,0.75919,2633.1,2633.0,1.2704]
[1748398274007,0.75919,2633.1,2633.0,2.02962]
[1748398274302,0.75919,2633.1,2632.9,0.00570147]
[1748398274303,0.75922,2633.0,2632.9,0.00570147]
[1748398274502,2.02022,2633.0,2632.9,0.00570147]
[1748398274707,42.82022,2633.0,2632.9,0.00570147]
[1748398275601,43.93436021,2633.0,2632.9,0.00570147]
[1748398276005,44.24234128,2633.0,2632.9,0.00570147]
[1748398277502,48.48312128,2633.0,2632.0,3.2078]
[1748398277707,0.75944,2632.3,2632.2,0.75942]
[1748398279108,0.75945,2632.2,2632.1,2.6225]
[1748398279300,0.75948,2632.1,2632.0,0.00570147]
[1748398279605,3.862,2632.3,2632.1,0.75945]
[1748398279906,0.75947,2632.2,2632.1,2.05125]
[1748398280504,0.75947,2632.2,2632.1,1.2918]
[1748398281106,2.02577,2632.2,2632.1,1.2918]
[1748398282505,2.02577,2632.2,2632.0,0.00570147]
[1748398282506,0.75948,2632.1,2632.0,0.00570147]
[1748398282707,2.02578,2632.1,2632.0,0.00570147]
[1748398286703,0.75948,2632.1,2632.0,0.00570147]
[1748398287103,0.75948,2632.1,2632.0,1.29650147]
[1748398288712,0.75948,2632.1,2632.0,0.00570147]
[1748398289100,2.80098,2632.1,2632.0,0.00570147]
[1748398295511,0.75962,2631.6,2631.5,0.6695]
[1748398296103,2.12352,2631.6,2631.5,0.6695]
[1748398297114,6.18352,2631.6,2631.5,0.6695]
[1748398299721,0.75968,2631.4,2631.3,1.3105]
[1748398300017,0.75968,2631.4,2631.3,1.9813]
[1748398302215,0.75971,2631.3,2631.2,0.6233]
[1748398302416,2.03581,2631.3,2631.2,0.6233]
[1748398302614,0.75977,2631.1,2631.0,0.6455]
[1748398302815,0.75985,2630.8,2630.7,1.9709]
[1748398303022,3.96765,2630.8,2630.7,1.9709]
[1748398303418,8.02865,2630.8,2630.7,1.9709]
[1748398303918,8.02865,2630.8,2630.4,0.6455]
[1748398303919,0.75994,2630.5,2630.4,0.6455]
[1748398305324,0.75994,2630.5,2630.4,2.0157]
[1748398306725,3.2078,2630.8,2630.4,2.0157]
[1748398306926,0.76552147,2631.0,2630.6,1.89976]
[1748398307229,0.75985,2630.8,2630.7,2.13006]
[1748398307420,0.75985,2630.9,2630.8,0.75984]
[1748398307616,0.00570147,2631.0,2630.9,0.75982]
[1748398307821,0.00570147,2631.0,2630.9,5.75982]
[1748398308124,0.00570147,2631.0,2630.9,7.09622]
[1748398309227,0.76550147,2631.0,2630.9,7.09622]
[1748398309528,0.76550147,2631.0,2630.9,6.3364]
[1748398310424,0.76550147,2631.0,2630.9,1.3364]
[1748398311327,0.00570147,2631.0,2630.9,5.30402]
[1748398311633,0.76550147,2631.0,2630.9,1.3364]
[1748398312622,0.00570147,2631.0,2630.9,2.09622]
[1748398312817,0.76550147,2631.0,2630.9,2.09622]
[1748398314528,0.00570147,2631.0,2630.9,5.30402]
[1748398315630,0.00570147,2631.0,2630.9,10.30402]
[1748398319935,0.00570147,2631.0,2630.9,10.97012]
[1748398321938,0.00570147,2631.0,2630.9,28.94312]